[Event "FIDE WCCC U10 2018"]
[Site "Santiago de Compostela"]
[Date "2018.11.15"]
[Round "11"]
[White "Shivakumar, Shawnak"]
[Black "Ansat, Aldiyar"]
[Result "1/2-1/2"]
[ECO "B78"]
[WhiteElo "1688"]
[BlackElo "1899"]
[Annotator "NA"]
[PlyCount "87"]
[EventDate "2018.11.04"]
[EventType "swiss"]
[EventCountry "ESP"]
[SourceTitle "playchess.com"]
[Source "ChessBase"]
[SourceQuality "1"]
[TimeControl "40/5400+30:1800+30"]

1. e4 {[%emt 0:00:00]} c5 {[%emt 0:00:00]} 2. Nf3 {[%emt 0:00:00]} d6 {[%emt 0:00:00]} 3. d4 {[%emt 0:00:00]} Nf6 {[%emt 0:00:00]} 4. Nc3 {[%emt 0:00:00]} cxd4 {[%emt 0:00:00]} 5. Nxd4 {[%emt 0:00:06] LiveBook: 99880 Games} g6 {[%emt 0:00:00]} 6. Be3 {[%emt 0:00:06]} Bg7 {[%emt 0:00:00]} 7. f3 {[%emt 0:00:06]} O-O {[%emt 0:00:00]} 8. Qd2 {[%emt 0:00:05]} Nc6 {[%emt 0:00:01]} 9. Bc4 {[%emt 0:00:05]} Bd7 {[%emt 0:00:04]} 10. O-O-O {[%emt 0:00:06]} Qa5 {[%emt 0:00:03]} 11. Nd5 {[%emt 0:01:46]} Qxd2+ {[%emt 0:01:56]} 12. Rxd2 {[%emt 0:00:10]} Nxd5 {[%emt 0:00:15]} 13. Bxd5 {[%emt 0:00:27]} Nxd4 {[%emt 0:00:09]} 14. Bxd4 {[%emt 0:00:20]} Bh6 {[%emt 0:00:01]} 15. Bxb7 {[%emt 0:00:23]} Rab8 {[%emt 0:01:18]} 16. Bd5 {[%emt 0:00:16]} a5 {[%emt 0:01:11]} 17. a3 Be6 {[%emt 0:01:36]} 18. Re1 {[%emt 0:02:32]} Bxd2+ {[%emt 0:00:29]} 19. Kxd2 {[%emt 0:00:05]} Rfc8 {[%emt 0:05:26]} 20. Kd3 {[%emt 0:01:58]} Kf8 {[%emt 0:15:50]} 21. h4 {[%emt 0:02:57]} Bxd5 {[%emt 0:11:19]} 22. exd5 {[%emt 0:00:10]} f6 {[%emt 0:00:43]} 23. Rb1 {[%emt 0:06:07]} Rb5 {[%emt 0:02:08]} 24. g4 {[%emt 0:01:10]} a4 {[%emt 0:00:50]} 25. c4 {[%emt 0:00:51]} Rb3+ {[%emt 0:02:01]} 26. Bc3 {[%emt 0:00:10]} e6 {[%emt 0:06:57]} 27. Re1 {[%emt 0:11:33]} exd5 {[%emt 0:01:41]} 28. cxd5 {[%emt 0:00:15]} Rc5 {[%emt 0:05:22]} 29. Re6 {[%emt 0:01:20]} Rxd5+ {[%emt 0:00:19]} 30. Ke4 {[%emt 0:00:11]} Rd1 {[%emt 0:10:39]} 31. Rxf6+ {[%emt 0:01:21]} Ke7 {[%emt 0:00:03]} 32. Rf4 {[%emt 0:00:34]} Rb1 {[%emt 0:09:43]} 33. g5 {[%emt 0:05:37]} Rb8 {[%emt 0:06:56]} 34. Kd3 {[%emt 0:10:49]} Ra8 {[%emt 0:09:23]} 35. Re4+ {[%emt 0:14:50]} Kd7 {[%emt 0:01:59]} 36. Rf4 {[%emt 0:02:42]} Ke6 {[%emt 0:02:02]} 37. Rf6+ {[%emt 0:04:35]} (37. Re4+ $11 Kf5 38. Re7) 37... Ke7 {[%emt 0:01:47]} (37... Kd5 $17) 38. Rf4 {[%emt 0:03:28]} Rf1 {[%emt 0:00:43]} 39. Ke2 {[%emt 0:01:14]} Rh1 {[%emt 0:00:49]} 40. Ke3 $17 {[%emt 0:00:00]} Ke6 {[%emt 0:00:00]} 41. Rf6+ Ke7 42. Rf4 Ke6 43. Rf6+ Ke7 44. Rf4 1/2-1/2

[Event "FIDE WCCC U10 2018"]
[Site "Santiago de Compostela"]
[Date "2018.11.15"]
[Round "11"]
[White "Nitsche, Nikolai"]
[Black "Xu, Daniel"]
[Result "0-1"]
[ECO "A45"]
[WhiteElo "1645"]
[BlackElo "1854"]
[Annotator "NA"]
[PlyCount "48"]
[EventDate "2018.11.04"]
[EventType "swiss"]
[EventCountry "ESP"]
[SourceTitle "playchess.com"]
[Source "ChessBase"]
[SourceQuality "1"]
[TimeControl "40/5400+30:1800+30"]

1. d4 {[%emt 0:00:00]} Nf6 2. Bf4 {[%emt 0:00:07]} g6 {[%emt 0:00:00]} 3. Nc3 {[%emt 0:00:45]} d5 {[%emt 0:00:00]} 4. Qd2 {[%emt 0:00:37]} Bg7 {[%emt 0:00:03]} 5. Bh6 {[%emt 0:02:02]} O-O {[%emt 0:00:19]} 6. Bxg7 {[%emt 0:00:09]} Kxg7 {[%emt 0:00:05]} 7. O-O-O {[%emt 0:00:37]} Be6 {[%emt 0:01:11]} 8. f3 {[%emt 0:02:08]} c5 {[%emt 0:02:56]} 9. h4 {[%emt 0:02:43] [#]} (9. dxc5 $14 {keeps the upper hand.} Qa5 10. e3) 9... cxd4 $1 {[%emt 0:00:37]} 10. Nb5 {[%emt 0:01:50]} Nc6 {[%emt 0:01:39]} (10... Bd7 $5 {[%cal Rd7b5]} 11. Nxd4 e5 $15) 11. h5 {[%emt 0:01:14]} a6 {[%emt 0:00:47]} (11... gxh5 $15 12. Nxd4 Nxd4 13. Qxd4 Bf5) 12. Nxd4 {[%emt 0:03:15]} Nxd4 {[%emt 0:00:17]} 13. Qxd4 {[%emt 0:00:09]} Qa5 {[%emt 0:00:26]} 14. g4 {[%emt 0:00:39]} Kg8 {[%emt 0:03:12]} (14... Qxa2 15. g5) 15. hxg6 {[%emt 0:00:52]} fxg6 {[%emt 0:00:10]} ({Aber nicht} 15... hxg6 $2 16. Qf4 $18) 16. Kb1 $14 {[%emt 0:16:41]} Rac8 {[%emt 0:04:49]} 17. Bh3 {[%emt 0:08:37]} Rc4 {[%emt 0:19:01]} 18. Qe5 {[%emt 0:00:19]} Bf7 {[%emt 0:00:07]} 19. Qxe7 {[%emt 0:00:32]} Ra4 {[%emt 0:01:56]} 20. Qxf6 {[%emt 0:01:56]} d4 {[%emt 0:00:52]} 21. b4 {[%emt 0:15:44]} Qxb4+ {[%emt 0:01:07]} 22. Kc1 {[%emt 0:00:17]} Qa3+ {[%emt 0:00:13]} 23. Kd2 {[%emt 0:00:51]} Qc3+ {[%emt 0:00:05]} 24. Kc1 {[%emt 0:00:04]} Rxa2 {[%emt 0:00:05]} 0-1

[Event "FIDE WCCC U10 2018"]
[Site "Santiago de Compostela"]
[Date "2018.11.15"]
[Round "11"]
[White "Chen, Muye"]
[Black "Cnejev, Vladimir-Alexandru"]
[Result "1-0"]
[ECO "D58"]
[WhiteElo "1636"]
[BlackElo "1810"]
[Annotator "NA"]
[PlyCount "78"]
[EventDate "2018.11.04"]
[EventType "swiss"]
[EventCountry "ESP"]
[SourceTitle "playchess.com"]
[Source "ChessBase"]
[SourceQuality "1"]
[TimeControl "40/5400+30:1800+30"]

1. d4 {[%emt 0:00:00]} d5 {[%emt 0:00:00]} 2. c4 {[%emt 0:00:00]} e6 {[%emt 0:00:00]} 3. Nc3 {[%emt 0:00:00]} Nf6 {[%emt 0:00:00]} 4. Bg5 {[%emt 0:00:03]} Be7 {[%emt 0:00:00]} 5. e3 {[%emt 0:00:05]} O-O {[%emt 0:00:00]} 6. Nf3 {[%emt 0:00:03]} h6 {[%emt 0:00:04]} 7. Bh4 {[%emt 0:00:05]} b6 {[%emt 0:00:07]} 8. Bd3 {[%emt 0:00:59]} Bb7 {[%emt 0:00:06]} 9. O-O {[%emt 0:00:07]} Nbd7 {[%emt 0:00:12]} 10. Qe2 {[%emt 0:00:16]} Ne4 {[%emt 0:00:15]} 11. Bxe7 {[%emt 0:00:22]} Qxe7 {[%emt 0:00:01]} 12. Rac1 {[%emt 0:03:18]} c5 {[%emt 0:04:15] LiveBook: 25 Games} 13. Rfd1 {[%emt 0:04:07]} Rac8 {[%emt 0:00:24]} 14. cxd5 {[%emt 0:03:37]} exd5 {[%emt 0:01:35]} 15. dxc5 {[%emt 0:01:39] D58: Queen's Gambit Declined: Tartakower Defence} Nxc3 {[%emt 0:03:37]} (15... bxc5 16. Ba6 Ndf6 17. Nxe4 Nxe4 18. Nd2 Ng5 19. Qb5 Bxa6 20. Qxa6 Rc7 21. Qa3 Rd8 22. Nb3 Ne6 23. h3 Rc6 {0-1 (65) Wang,Y (2739)-Adams,M (2712) Wijk aan Zee 2009}) 16. Rxc3 {[%emt 0:00:41]} Nxc5 {[%emt 0:01:23]} 17. Bf5 $146 {[%emt 0:00:59]} ({Predecessor:} 17. Bb1 Ne4 18. Rxc8 Rxc8 19. Nd4 Rc5 20. a3 Qc7 21. Nb3 Rc6 22. Qb5 Nd6 23. Qd3 Ne4 24. f3 Nf6 25. Rd2 Qc8 {½-½ (25) Ester,L (2000)-Khamidov,K Liberec 2006}) 17... Ne6 {[%emt 0:01:30]} 18. Rxc8 {[%emt 0:02:43]} Rxc8 {[%emt 0:00:12]} 19. Qd2 {[%emt 0:00:56]} Rc7 {[%emt 0:02:40]} 20. h3 {[%emt 0:02:37]} Nc5 $14 {[%emt 0:07:58]} 21. Qb4 {[%emt 0:05:24]} Ne4 {[%emt 0:08:08]} 22. Qxe7 {[%emt 0:00:28]} Rxe7 {[%emt 0:00:01]} 23. Rc1 {[%emt 0:00:18]} Nd6 {[%emt 0:00:19]} 24. Bd3 {[%emt 0:00:25]} Kf8 {[%emt 0:00:43]} 25. Nd4 {[%emt 0:00:14]} Ke8 {[%emt 0:01:51]} 26. Kf1 {[%emt 0:00:24]} g6 {[%emt 0:05:48]} 27. Ke2 {[%emt 0:00:36]} Kd8 {[%emt 0:05:25]} 28. g3 {[%emt 0:02:00]} Rc7 {[%emt 0:00:46]} 29. Rxc7 {[%emt 0:00:05]} Kxc7 {[%emt 0:00:02]} 30. Nb5+ {[%emt 0:00:07]} Nxb5 {[%emt 0:00:08]} 31. Bxb5 {[%emt 0:00:04]} f6 {[%emt 0:00:48]} 32. Be8 {[%emt 0:00:49]} g5 {[%emt 0:00:16]} 33. Kd3 {[%emt 0:00:06]} Kd6 {[%emt 0:00:14]} 34. Kd4 {[%emt 0:00:05]} Bc8 {[%emt 0:00:36]} 35. h4 {[%emt 0:00:38]} a5 {[%emt 0:00:38]} 36. Bf7 {[%emt 0:00:14]} Be6 {[%emt 0:09:13]} 37. Bxe6 {[%emt 0:05:03]} Kxe6 {[%emt 0:00:42]} 38. hxg5 {[%emt 0:00:02]} hxg5 {[%emt 0:00:14]} 39. g4 {[%emt 0:00:04]} Kd6 {[%emt 0:00:45]} 1-0

[Event "FIDE WCCC U10 2018"]
[Site "Santiago de Compostela"]
[Date "2018.11.15"]
[Round "11"]
[White "Li Yihao"]
[Black "Amgalantengis, Enkh-Amgalan"]
[Result "1/2-1/2"]
[ECO "C54"]
[WhiteElo "1601"]
[BlackElo "1918"]
[Annotator "NA"]
[PlyCount "64"]
[EventDate "2018.11.04"]
[EventType "swiss"]
[EventCountry "ESP"]
[SourceTitle "playchess.com"]
[Source "ChessBase"]
[SourceQuality "1"]
[TimeControl "40/5400+30:1800+30"]

1. e4 {[%emt 0:00:05]} e5 {[%emt 0:00:00]} 2. Nf3 {[%emt 0:00:08]} Nc6 {[%emt 0:00:00]} 3. d4 {[%emt 0:00:29]} exd4 {[%emt 0:01:23]} 4. Bc4 {[%emt 0:00:22]} Bc5 {[%emt 0:00:27]} 5. c3 {[%emt 0:00:10]} Nf6 {[%emt 0:00:07]} 6. e5 {[%emt 0:00:39]} d5 7. Be2 {[%emt 0:00:14] C54: Giuoco Piano: 4 c3 Nf6, main lines with 5 d4 and 5 d3} (7. Bb5 Ne4 8. cxd4 Bb6 9. Nc3 O-O 10. Be3 Bg4 11. h3 Bh5 12. Qc2 Bg6 13. Qb3 Ne7 14. O-O c6 15. Bd3 Kh8 16. Nh4 c5 17. Nxg6+ fxg6 18. Bxe4 cxd4 19. Nxd5 Nxd5 {1-0 (51) Jones,G (2677)-Aronian,L (2780) Douglas 2018}) 7... Ne4 {[%emt 0:04:09]} 8. cxd4 {[%emt 0:00:06]} Bb6 {[%emt 0:00:14]} 9. O-O {[%emt 0:00:41]} O-O {[%emt 0:00:27]} 10. Nc3 {[%emt 0:00:18]} Bg4 {[%emt 0:28:04]} 11. Be3 {[%emt 0:00:23] LiveBook: 16 Games} f6 {[%emt 0:10:09]} 12. exf6 {[%emt 0:02:10]} Nxf6 {[%emt 0:01:59]} 13. Na4 {[%emt 0:01:20]} Bxf3 $146 {[%emt 0:04:29]} ({Predecessor:} 13... Qe7 14. Rc1 Rae8 {½-½ (29) Nugumanov,B (2350)-Makhnyov,D (2379) Almaty 2017}) 14. Bxf3 {[%emt 0:00:16]} Ne7 {[%emt 0:00:13]} 15. Qd3 {[%emt 0:01:39]} c6 {[%emt 0:00:35]} 16. Nxb6 {[%emt 0:01:48]} axb6 {[%emt 0:00:50]} 17. b4 {[%emt 0:04:23]} (17. Bd2 $11) 17... b5 {[%emt 0:02:20]} 18. Bf4 {[%emt 0:04:21]} Ng6 {[%emt 0:01:13]} 19. Bg3 {[%emt 0:04:05]} Qe7 {[%emt 0:02:15]} 20. Qc3 {[%emt 0:03:38]} Rfe8 {[%emt 0:03:54]} 21. Rfe1 {[%emt 0:00:34]} Qd7 {[%emt 0:18:05]} 22. Qc2 {[%emt 0:03:42]} Re7 {[%emt 0:01:30]} 23. h3 {[%emt 0:07:53]} Qe8 {[%emt 0:03:32]} 24. Rxe7 {[%emt 0:01:18]} Qxe7 {[%emt 0:00:08]} 25. Qc3 {[%emt 0:00:47]} Re8 {[%emt 0:01:07]} 26. a4 {[%emt 0:17:11]} bxa4 {[%emt 0:03:33]} 27. Rxa4 {[%emt 0:02:23]} Ne4 {[%emt 0:01:05]} 28. Bxe4 {[%emt 0:01:20]} Qxe4 {[%emt 0:00:12]} 29. Ra7 {[%emt 0:03:34]} Qb1+ $15 {[%emt 0:11:42]} 30. Kh2 {[%emt 0:00:49]} Re1 {[%emt 0:00:41]} 31. Bc7 {[%emt 0:02:16]} Rh1+ {[%emt 0:00:33]} 32. Kg3 {[%emt 0:00:07]} Nf8 {[%emt 0:00:33]} 1/2-1/2

[Event "FIDE WCCC U10 2018"]
[Site "Santiago de Compostela"]
[Date "2018.11.15"]
[Round "11"]
[White "Cacheiro Blanco, Diego"]
[Black "Atanasov, Anthony"]
[Result "0-1"]
[ECO "B90"]
[WhiteElo "1453"]
[BlackElo "1916"]
[Annotator "NA"]
[PlyCount "80"]
[EventDate "2018.11.04"]
[EventType "swiss"]
[EventCountry "ESP"]
[SourceTitle "playchess.com"]
[Source "ChessBase"]
[SourceQuality "1"]
[TimeControl "40/5400+30:1800+30"]

1. e4 {[%emt 0:00:00]} c5 {[%emt 0:00:00]} 2. Nf3 {[%emt 0:00:00]} d6 {[%emt 0:00:00]} 3. d4 {[%emt 0:00:19]} cxd4 {[%emt 0:00:00]} 4. Nxd4 {[%emt 0:00:31]} Nf6 {[%emt 0:00:00]} 5. Nc3 {[%emt 0:00:17]} a6 {[%emt 0:00:00]} 6. Be3 {[%emt 0:00:30]} e6 {[%emt 0:00:00]} 7. f3 {[%emt 0:00:43]} b5 {[%emt 0:00:00]} 8. Qd2 {[%emt 0:01:00]} Nbd7 {[%emt 0:00:00]} 9. O-O-O {[%emt 0:00:48]} Bb7 {[%emt 0:00:00]} 10. g4 {[%emt 0:01:21]} h6 {[%emt 0:00:00]} 11. Kb1 {[%emt 0:01:02] B80: Sicilian Scheveningen: 6 g3 and 6 Be3, including English Attack} (11. h4 b4 12. Na4 Qa5 13. b3 Be7 14. Rh3 Nc5 15. a3 Rc8 16. axb4 Nxb3+ 17. Nxb3 Qxa4 18. Kb2 d5 19. Bc5 Qd7 20. g5 hxg5 21. hxg5 Rxh3 22. Bxh3 {1-0 (37) Caruana,F (2787)-Van Wely,L (2640) Wijk aan Zee 2016 CBM 171 [Caruana,F]}) 11... b4 12. Nce2 {[%emt 0:02:13]} d5 {[%emt 0:03:44]} 13. exd5 {[%emt 0:02:12] LiveBook: 5 Games} Nxd5 {[%emt 0:02:46]} 14. Nf4 {[%emt 0:04:30]} N7f6 {[%emt 0:07:53]} (14... Nxe3 $11 15. Qxe3 Qb6) 15. Bc4 {[%emt 0:16:08]} Nxf4 $146 {[%emt 0:09:11]} ({Predecessor:} 15... Qc7 16. Bb3 O-O-O 17. Nd3 e5 18. Nf5 e4 19. fxe4 Nxe4 {1-0 (40) Alvarez,A (2148)-Navia,E (2055) San Andres Islas 2008}) 16. Bxf4 {[%emt 0:00:56]} Bc5 {[%emt 0:02:43]} 17. Rhf1 {[%emt 0:10:30]} Nd5 {[%emt 0:10:09]} (17... Bd5 $11 18. Be2 O-O) 18. Be5 {[%emt 0:04:19]} O-O {[%emt 0:02:57]} 19. Nf5 {[%emt 0:14:13]} f6 {[%emt 0:18:56]} 20. Bg3 {[%emt 0:03:45]} Kh7 {[%emt 0:12:53]} (20... Qb6 $15 {stays ahead.} 21. Bf2 Rfd8 22. Bxd5 Bxd5 23. Ne7+ Kf7 24. Nxd5 Rxd5 25. Bxc5 Qxc5) 21. Nd4 {[%emt 0:07:08]} Bxd4 {[%emt 0:06:13]} 22. Qxd4 {[%emt 0:00:25]} Kh8 {[%emt 0:01:13]} 23. Bxd5 {[%emt 0:02:15]} Bxd5 {[%emt 0:01:34]} 24. Qxb4 {[%emt 0:00:40]} a5 {[%emt 0:04:34]} 25. Qd6 {[%emt 0:02:43]} Qc8 {[%emt 0:00:46]} 26. Rf2 {[%emt 0:09:51]} Rd8 {[%emt 0:01:05]} 27. Qf4 {[%emt 0:02:42]} Bxa2+ {[%emt 0:00:56]} 28. Kxa2 {[%emt 0:00:18]} Rxd1 {[%emt 0:00:12]} 29. h4 {[%emt 0:01:25]} e5 {[%emt 0:00:33]} 30. Qe4 {[%emt 0:00:36]} Qe6+ {[%emt 0:00:28]} 31. c4 {[%emt 0:00:22]} Rc8 {[%emt 0:00:18]} 32. Rc2 {[%emt 0:00:29]} Rd4 $19 {[%emt 0:01:07]} 33. Qe2 {[%emt 0:00:46]} Rcxc4 {[%emt 0:00:27]} 34. Rxc4 {[%emt 0:00:33]} Qxc4+ {[%emt 0:00:18]} 35. Qxc4 {[%emt 0:00:13]} Rxc4 {[%emt 0:00:01]} 36. Kb3 {[%emt 0:00:19]} Rb4+ {[%emt 0:00:05]} 37. Ka3 {[%emt 0:00:35]} e4 {[%emt 0:00:07]} 38. Be1 {[%emt 0:00:37]} exf3 {[%emt 0:00:10]} 39. Bxb4 {[%emt 0:00:14]} axb4+ {[%emt 0:00:07]} 40. Kxb4 {[%emt 0:00:00]} f2 {[%emt 0:00:00]} 0-1

[Event "FIDE WCCC U10 2018"]
[Site "Santiago de Compostela"]
[Date "2018.11.15"]
[Round "11"]
[White "Gusev, Mikhail"]
[Black "Lee, Jayden"]
[Result "0-1"]
[ECO "A48"]
[WhiteElo "1289"]
[BlackElo "1830"]
[Annotator "NA"]
[PlyCount "44"]
[EventDate "2018.11.04"]
[EventType "swiss"]
[EventCountry "ESP"]
[SourceTitle "playchess.com"]
[Source "ChessBase"]
[SourceQuality "1"]
[TimeControl "40/5400+30:1800+30"]

1. d4 {[%emt 0:00:00]} Nf6 {[%emt 0:00:00]} 2. Nf3 {[%emt 0:00:00]} g6 {[%emt 0:00:00]} 3. Nc3 {[%emt 0:00:00]} c5 {[%emt 0:00:35]} 4. d5 {[%emt 0:01:39]} d6 {[%emt 0:00:09]} 5. e4 {[%emt 0:00:23]} Bg7 {[%emt 0:00:05]} 6. Be3 {[%emt 0:00:07]} O-O {[%emt 0:00:47]} 7. Qd2 {[%emt 0:00:14]} Qa5 {[%emt 0:01:23]} 8. Bh6 {[%emt 0:03:19]} Bxh6 {[%emt 0:13:04]} 9. Qxh6 {[%emt 0:00:08]} Nxe4 $2 {[%emt 0:00:43] [#]} ({Black should play} 9... Nbd7 $14) 10. Ng5 $2 {[%emt 0:08:16]} (10. O-O-O $1 $18 Nf6 11. Ng5) 10... Nxg5 {[%emt 0:00:39]} 11. Qxg5 {[%emt 0:02:43]} Na6 {[%emt 0:01:19]} 12. Bxa6 {[%emt 0:01:05]} bxa6 {[%emt 0:02:05]} 13. h4 $17 (13. Qxe7 $11 Rb8 14. O-O) 13... Rb8 {[%emt 0:01:50]} 14. O-O {[%emt 0:04:43]} Rxb2 {[%emt 0:06:36]} 15. Ne4 {[%emt 0:00:11]} f6 {[%emt 0:13:20]} 16. Qh6 {[%emt 0:00:16]} Bf5 {[%emt 0:00:32]} 17. Rae1 {[%emt 0:00:13]} Bxe4 {[%emt 0:05:04]} 18. Rxe4 {[%emt 0:00:12]} Rf7 {[%emt 0:00:30]} 19. h5 {[%emt 0:00:06]} g5 {[%emt 0:06:36]} 20. f4 {[%emt 0:02:29]} Qd2 {[%emt 0:03:51]} 21. Rxe7 {[%emt 0:03:53]} Rxe7 {[%emt 0:00:31]} 22. Qxf6 {[%emt 0:00:10]} Qd4+ {[%emt 0:00:11]} 0-1